bitfinex/quotes_ETHUSD_20251230
["timestamp","ask_amount","ask_price","bid_price","bid_amount"]
[1767064742625,2.3492,2928.1,2927.0,7.7318972]
[1767064743056,0.001,2928.2,2927.0,7.7318972]
[1767064743226,0.001,2928.6,2927.3,0.01706368]
[1767064743429,0.001,2928.6,2927.4,0.03416]
[1767064743626,0.001,2928.6,2927.5,0.897]
[1767064744318,2.36140399,2928.7,2927.5,0.897]
[1767064744736,2.36140399,2928.7,2927.0,0.002]
[1767064744969,2.3634,2928.6,2927.1,4.31334575]
[1767064745949,2.3634,2928.6,2927.1,0.897]
[1767064746445,2.3634,2928.4,2927.1,0.897]
[1767064746652,2.3634,2928.2,2927.1,0.897]
[1767064751956,2.3634,2928.0,2927.0,0.002]
[1767064752259,2.3634,2927.8,2927.0,0.002]
[1767064753752,2.3634,2927.7,2927.0,0.002]
[1767064754126,2.3634,2927.7,2926.3,0.896]
[1767064754746,2.3634,2927.5,2926.3,4.31328168]
[1767064755755,2.3634,2927.5,2926.3,0.896]
[1767064755957,0.32604,2927.4,2926.3,0.896]
[1767064756178,2.4792,2927.3,2926.3,0.896]
[1767064756639,2.4792,2927.3,2926.3,4.31326607]
[1767064758059,2.4792,2927.3,2926.3,0.896]
[1767064758258,0.897,2927.5,2926.4,0.03417167]
[1767064758459,2.4792,2927.6,2926.4,0.03417167]
[1767064758626,3.3762,2927.6,2926.5,0.03417051]
[1767064758830,3.3762,2927.6,2926.4,0.03417167]
[1767064759125,2.4792,2927.6,2926.4,0.03417167]
[1767064759539,2.4792,2927.6,2926.5,3.41705108]
[1767064759832,2.4792,2927.6,2926.6,0.03416934]
[1767064760443,2.45921994,2928.6,2926.6,0.03416934]
[1767064760647,2.4792,2928.4,2926.6,0.03416934]
[1767064760848,2.4792,2928.2,2926.6,0.05123302]
[1767064761953,2.4792,2928.2,2926.7,6.83363514]
[1767064762160,2.4792,2928.2,2926.8,0.897]
[1767064764168,2.4792,2928.2,2926.8,4.31361567]
[1767064764773,2.4792,2928.0,2926.8,7.7303165]
[1767064767590,3.41476502,2928.5,2926.8,7.7303165]
[1767064767591,2.4792,2928.5,2927.0,0.01706368]
[1767064767743,0.001,2928.7,2927.3,6.36113544]
[1767064767744,2.4802,2928.7,2927.3,6.36113544]
[1767064767946,2.4802,2928.7,2927.4,0.896]
[1767064768154,2.4802,2928.7,2927.5,6.8317677]
[1767064768155,3.3772,2928.7,2927.5,6.8317677]
[1767064768339,0.001,2928.6,2927.5,6.8317677]
[1767064768547,2.4792,2928.6,2927.5,3.41588385]
[1767064769563,2.4792,2928.6,2927.4,4.31198615]
[1767064769762,2.4792,2928.6,2927.3,0.896]
[1767064769963,2.4792,2928.6,2927.3,4.31211131]
[1767064772476,2.4792,2928.5,2927.3,0.896]
[1767064772668,2.4792,2928.3,2926.9,3.41655032]
[1767064772863,2.4792,2928.1,2926.5,0.002]
[1767064773059,2.4792,2928.1,2926.5,7.29328537]
[1767064773276,2.4792,2928.6,2926.6,11.39806968]
[1767064773457,2.4792,2928.6,2927.3,3.4160995]
[1767064773458,2.4792,2928.4,2927.3,3.4160995]
[1767064773650,2.4802,2928.7,2927.4,0.03416]
[1767064774475,2.4802,2928.7,2927.5,6.8317677]
[1767064774671,2.4802,2928.7,2927.6,0.93015767]
[1767064774849,0.897,2928.9,2927.6,0.93015767]
[1767064774850,3.3762,2928.9,2927.6,0.93015767]
[1767064775353,3.3762,2928.9,2927.6,0.896]
[1767064775562,3.3762,2928.9,2927.6,0.93015767]
[1767064775982,2.4792,2928.9,2927.6,0.93015767]
[1767064776552,2.4802,2928.9,2927.7,6.83130102]
[1767064776754,2.4802,2928.9,2927.7,3.41565051]
[1767064777168,2.4802,2928.9,2927.8,0.26037639]
[1767064777484,2.4802,2928.9,2927.7,3.41565051]
[1767064777983,2.4802,2928.9,2927.7,3.44980701]
[1767064778174,2.4802,2928.9,2927.6,0.896]
[1767064778175,2.4802,2928.9,2927.6,4.31172547]
[1767064778353,2.4792,2928.8,2927.6,0.896]
[1767064778560,2.4792,2928.6,2927.6,0.896]
[1767064778958,2.4792,2928.5,2927.6,0.896]
[1767064780677,2.4792,2928.8,2927.7,0.0341565]
[1767064780887,2.4792,2928.8,2927.6,7.72750871]
[1767064781379,2.4792,2928.8,2927.6,4.31174153]
[1767064785088,0.001,2928.9,2927.6,7.76166638]
[1767064785258,0.001,2928.9,2927.6,7.72750871]
[1767064785454,0.001,2928.9,2927.8,6.83106768]
[1767064786599,0.001,2928.9,2928.1,5.09339787]
[1767064786809,2.3799,2928.8,2927.7,8.509016]
[1767064787083,5.09439787,2928.9,2927.7,0.896]
[1767064787084,2.3799,2928.6,2927.7,0.896]
[1767064787290,2.3799,2928.6,2927.7,4.31163026]
[1767064789198,2.3799,2928.6,2927.7,9.40502813]
[1767064789396,2.3799,2928.8,2928.1,5.09339787]
[1767064789689,0.897,2928.9,2928.1,5.09339787]
[1767064789859,2.3809,2928.9,2928.1,5.09339787]
[1767064790656,2.3809,2928.9,2928.1,8.50851986]
[1767064793017,2.3809,2928.9,2928.1,3.41512199]
[1767064795290,2.3809,2928.9,2928.3,5.09339787]
[1767064795502,2.3214,2929.3,2928.5,5.09339787]
[1767064795704,2.3214,2929.3,2928.6,5.09339787]
[1767064795863,0.001,2929.4,2928.7,0.896]
[1767064796065,2.3224,2929.4,2928.7,0.896]
[1767064796497,2.3224,2929.4,2928.8,5.09339787]
[1767064796712,2.31140997,2929.9,2928.7,0.896]
[1767064796969,2.31140997,2929.9,2928.8,5.09339787]
[1767064797211,0.001,2930.1,2928.7,0.896]
[1767064797212,2.3214,2929.7,2928.7,0.896]
[1767064797507,2.3214,2929.6,2928.7,0.896]
[1767064797681,2.3214,2929.4,2928.7,0.896]
[1767064798299,2.3214,2929.4,2928.7,4.31047952]
[1767064798708,2.3214,2929.4,2928.7,0.896]
[1767064799016,2.3214,2929.4,2928.7,4.3104773]
[1767064799427,3.4138605,2930.1,2928.7,4.3104773]
[1767064799428,2.3214,2930.0,2928.7,4.3104773]
[1767064799713,2.3214,2930.0,2928.7,7.72496154]
[1767064799714,2.66278605,2930.0,2928.7,7.72496154]
[1767064799877,2.3214,2930.0,2928.7,17.49382311]
[1767064800212,2.3214,2930.0,2928.7,14.07933887]
[1767064800416,2.3224,2930.1,2928.7,14.07933887]
[1767064800621,2.3224,2930.1,2928.3,0.01706368]
[1767064800919,2.3224,2930.1,2928.4,0.93014834]
[1767064801122,2.3224,2930.1,2928.7,6.82896672]
[1767064801493,2.3224,2930.1,2928.6,0.25952256]
[1767064801691,0.001,2930.1,2928.7,6.67969409]
[1767064801904,2.3214,2930.3,2928.7,6.67969409]
[1767064802117,2.30521444,2930.3,2928.9,16.302603]
[1767064802286,2.30521444,2930.3,2929.0,0.896]
[1767064802488,2.3214,2931.3,2929.0,0.896]
[1767064802785,0.001,2930.1,2929.1,0.25952256]
[1767064802989,2.3214,2930.4,2929.1,0.25952256]
[1767064803721,2.3214,2930.4,2929.2,3.4139014]
[1767064804103,2.3214,2930.4,2929.0,3.41406366]
[1767064804281,2.3214,2930.4,2929.1,4.31001716]
[1767064804487,2.3214,2930.4,2929.1,7.72403511]
[1767064804693,2.55354,2930.3,2929.1,7.72403511]
[1767064805196,2.3214,2930.3,2929.1,7.72403511]
[1767064805382,2.3214,2931.2,2929.1,7.72403511]
[1767064805789,2.3214,2931.1,2929.3,6.82756972]
[1767064807419,2.3214,2931.1,2929.4,0.03413668]
[1767064808386,3.41180484,2931.0,2929.4,3.44779247]
[1767064808583,2.3214,2930.8,2929.4,3.44779247]
[1767064810702,2.3214,2930.7,2929.4,0.03413668]
[1767064810902,2.3214,2930.7,2929.4,3.41365039]
[1767064811103,2.3214,2930.7,2929.4,3.44778706]
[1767064812119,2.3214,2930.7,2929.3,3.41376902]
[1767064812427,2.3214,2930.5,2929.3,3.41376902]
[1767064812731,2.3214,2930.5,2929.2,3.44803646]
[1767064813298,2.3214,2930.5,2929.3,6.82756972]
[1767064815597,2.3214,2930.5,2929.3,3.41378486]
[1767064815810,2.3214,2930.5,2929.3,3.4479227]
[1767064816536,2.3214,2930.5,2929.2,7.2538961]
[1767064816830,2.3214,2930.5,2929.3,0.896]
[1767064817725,2.3214,2930.5,2929.3,4.30976841]
[1767064817928,2.3214,2930.5,2929.3,7.72355327]
[1767064818498,2.3214,2930.5,2929.3,4.30976841]
[1767064818699,2.3214,2930.5,2929.3,7.72355327]
[1767064818931,2.3214,2930.5,2929.5,3.4135518]
[1767064819127,2.3214,2930.5,2929.6,0.03413435]
[1767064819330,2.3214,2930.5,2929.4,3.44775724]
[1767064819529,2.3234,2930.5,2929.4,3.44775724]
[1767064820924,2.3234,2930.5,2929.4,6.86142556]
[1767064821232,2.3234,2930.5,2929.6,5.08844968]
[1767064822416,2.3234,2930.5,2929.4,3.41362056]
[1767064822619,2.3234,2930.5,2929.4,3.44775724]
[1767064822945,2.3234,2930.5,2929.3,13.23821323]
[1767064824249,2.3234,2930.5,2929.3,9.82444968]
[1767064824547,2.3234,2930.5,2929.3,13.23820592]
[1767064825527,2.3234,2930.5,2929.4,3.41364634]
[1767064831934,2.3234,2930.5,2929.3,9.39819388]
[1767064832125,2.3234,2930.5,2929.3,5.98444968]
[1767064832445,2.3234,2930.5,2929.3,9.43236153]
[1767064832737,2.3234,2930.5,2929.3,12.81200855]
[1767064833439,2.2677,2930.7,2929.6,8.50176898]
[1767064834612,2.2677,2930.7,2929.7,0.896]
[1767064836970,0.002,2930.8,2929.7,0.896]
[1767064837166,0.01706368,2933.2,2930.4,5.08844968]
[1767064837167,2.2677,2931.3,2930.4,5.08844968]
[1767064837337,2.2677,2931.7,2930.7,5.08844968]
[1767064837673,2.2677,2931.7,2931.0,5.08844968]
[1767064837941,2.2677,2931.7,2931.1,0.896]
[1767064839338,2.2697,2931.9,2931.1,0.896]
[1767064839544,3.60935764,2933.2,2931.1,0.896]
[1767064839545,2.2677,2932.7,2931.1,0.946]
[1767064839754,2.25151867,2932.7,2931.1,12.80781301]
[1767064840239,2.25151867,2932.7,2931.4,5.08844968]
[1767064840742,2.25151867,2932.7,2931.1,12.80781301]
[1767064840937,2.25151867,2932.7,2931.1,4.30767489]
[1767064841117,2.2677,2932.4,2931.1,4.30767489]
[1767064841520,2.2677,2932.8,2931.6,3.41110656]
[1767064841727,2.2677,2932.8,2931.7,0.896]
[1767064842757,2.2677,2933.1,2931.7,0.896]
[1767064843746,2.2677,2932.9,2931.4,3.41131981]
[1767064843930,2.2677,2932.9,2931.5,4.30620409]
[1767064844135,2.2677,2932.9,2931.6,3.41109314]
[1767064844356,2.2677,2932.9,2931.7,3.41095894]
[1767064844561,2.49447,2932.8,2931.7,3.41095894]
[1767064844861,2.2677,2932.8,2931.7,3.41095894]
[1767064845846,2.2677,2932.8,2931.6,3.41110656]
[1767064846039,2.2677,2932.8,2931.5,0.895]
[1767064846232,2.2677,2932.8,2931.5,4.30614227]
[1767064846429,2.2677,2932.8,2931.6,0.895]
[1767064846630,2.2862,2932.6,2931.6,0.895]
[1767064847175,3.40922507,2933.3,2931.6,0.895]
[1767064847176,2.2882,2932.8,2931.6,0.895]
[1767064847358,0.002,2932.8,2931.6,0.895]
[1767064847565,2.2862,2932.7,2931.6,0.895]
[1767064847764,2.2862,2932.7,2931.6,0.92911106]
[1767064848161,2.51502,2932.7,2931.6,0.92911106]
[1767064848350,2.51502,2932.7,2931.6,0.895]
[1767064848665,2.2862,2932.6,2931.7,0.895]
[1767064850161,0.22882,2932.7,2931.7,0.895]
[1767064850362,0.22882,2932.7,2930.7,0.30952256]
[1767064850363,2.2862,2932.6,2930.8,3.41195272]
[1767064850663,2.2862,2932.6,2930.9,0.895]
[1767064850664,2.2862,2932.4,2930.9,0.895]
[1767064851741,2.426972,2932.2,2930.9,0.895]
[1767064851937,2.2862,2932.1,2930.9,0.895]
[1767064852161,0.91206368,2932.6,2930.9,0.895]
[1767064852162,2.2862,2931.9,2930.9,0.895]
[1767064852568,2.2862,2931.8,2930.9,0.895]
[1767064853365,2.2862,2931.8,2930.2,4.30765291]
[1767064853564,2.30326368,2931.8,2930.2,0.92912736]
[1767064853870,2.30326368,2931.8,2930.2,4.30772514]
[1767064854167,2.2862,2931.6,2930.2,4.3418525]
[1767064854334,2.2862,2931.5,2930.2,0.92912736]
[1767064854738,2.2862,2931.5,2930.2,0.895]
[1767064856637,3.41133929,2931.4,2930.2,0.895]
[1767064856842,2.4244,2931.3,2930.2,0.895]
[1767064857045,2.4244,2931.1,2930.2,0.895]
[1767064857545,0.24244,2931.2,2930.2,4.30771923]
[1767064857871,2.4244,2931.2,2930.2,0.92912736]
[1767064858461,2.4244,2931.2,2930.2,0.895]
[1767064861251,0.01238487,2931.5,2930.2,4.34185201]
[1767064861570,2.4244,2931.4,2930.2,4.34185201]
[1767064861748,2.43678487,2931.4,2930.2,0.03412736]
[1767064861946,0.896,2931.5,2929.6,3.84]
[1767064861947,2.4244,2931.2,2929.6,3.84]
[1767064862279,2.4244,2931.2,2930.1,3.41277512]
[1767064862460,2.4244,2931.2,2930.1,0.03412852]
[1767064862654,2.4244,2931.2,2930.1,3.44697417]
[1767064862978,2.4244,2931.5,2930.2,3.41273633]
[1767064863175,2.4244,2931.9,2930.3,4.76912619]
[1767064863348,2.43678487,2931.9,2930.4,6.82500682]
[1767064863675,2.43678487,2931.9,2930.5,0.03412386]
[1767064864057,2.4244,2931.8,2930.5,0.03412386]
[1767064864254,2.4244,2931.6,2930.3,4.735]
[1767064864459,2.4244,2931.4,2930.3,4.735]
[1767064864668,2.4244,2931.2,2930.3,4.735]
[1767064865254,2.4244,2931.0,2930.3,4.735]
[1767064865759,2.4244,2931.0,2930.3,3.84]
[1767064866296,2.43678487,2931.0,2930.1,0.001]
[1767064867664,2.4244,2930.9,2930.1,0.001]
[1767064868881,2.4244,2930.8,2930.1,0.001]
[1767064869382,2.4244,2930.6,2929.4,0.93013668]
[1767064870591,2.4244,2930.6,2929.4,0.896]
[1767064871386,2.4244,2930.5,2929.4,0.896]
[1767064871573,2.4244,2930.3,2929.4,0.896]
[1767064871775,2.4244,2930.3,2929.4,0.001]
[1767064872181,2.4244,2930.3,2930.0,0.001]
[1767064872486,2.4244,2930.3,2929.4,0.001]
[1767064873565,2.4244,2930.3,2929.4,0.03513668]
[1767064873792,2.4244,2930.3,2929.4,0.001]
[1767064873976,2.75644,2930.3,2929.4,0.001]
[1767064878415,9.75965024,2931.0,2929.4,0.001]
[1767064878416,2.3171,2932.8,2931.0,0.25952256]
[1767064878575,6.81686492,2933.9,2932.1,0.01706368]
[1767064878576,2.54881,2932.7,2932.1,0.01706368]
[1767064878898,2.26819162,2932.7,2932.3,7.077356]
[1767064879999,2.26819162,2932.7,2931.7,2.2953]
[1767064880301,2.26819162,2932.7,2931.7,5.70618705]
[1767064880498,2.26819162,2932.7,2931.9,3.41067676]
[1767064880694,2.3171,2932.5,2931.9,3.41067676]
[1767064881070,2.3171,2932.5,2932.0,3.41063877]
[1767064881301,0.22681916,2932.6,2931.8,0.01706368]
[1767064881503,0.002,2932.7,2932.3,3.4102897]
[1767064881702,0.002,2932.7,2932.0,0.01706368]
[1767064881703,0.896,2933.4,2932.1,3.41052487]
[1767064881874,0.002,2933.9,2932.2,0.01706368]
[1767064882079,0.002,2933.9,2932.4,2.31236368]
[1767064882080,0.9778022,2933.9,2932.4,2.31236368]
[1767064882310,0.002,2933.9,2932.4,2.31236368]
[1767064882882,0.002,2933.9,2932.4,2.2953]
[1767064883181,14.527922,2933.7,2932.4,2.2953]
[1767064883379,12.149722,2933.7,2932.4,2.2953]
[1767064883585,0.896,2933.6,2932.4,2.2953]
[1767064883786,0.002,2933.9,2932.5,2.2953]
[1767064884505,3.609,2936.2,2934.1,2.2953]
[1767064884506,0.47780906,2935.5,2934.1,2.2953]
[1767064884705,0.47780906,2935.5,2935.3,2.47323134]
[1767064884706,0.40567465,2935.5,2935.3,2.47323134]
[1767064884892,0.40567465,2935.5,2935.4,0.895]
[1767064885287,0.40567465,2935.5,2935.0,2.2953]
[1767064885497,0.40567465,2935.5,2934.8,0.895]
[1767064885988,0.40567465,2935.5,2934.8,3.1903]
[1767064886183,0.40567465,2935.5,2934.9,2.2953]
[1767064886384,0.35567465,2935.5,2934.9,2.2953]
[1767064886976,0.35567465,2935.5,2934.1,3.40816815]
[1767064886977,0.35567465,2935.5,2933.7,2.2953]
[1767064887187,0.35567465,2935.5,2933.6,0.05]
[1767064887188,0.35567465,2935.5,2934.4,5.70314658]
[1767064887378,0.35567465,2935.5,2934.5,4.30272507]
[1767064887575,0.35567465,2935.5,2934.7,2.2953]
[1767064887997,0.35567465,2935.5,2934.8,2.2953]
[1767064888506,0.01706368,2936.1,2934.8,2.2953]
[1767064888821,0.01706368,2936.1,2934.9,0.895]
[1767064889109,0.01706368,2936.0,2934.9,0.895]
[1767064889312,0.01706368,2936.0,2934.8,2.2953]
[1767064889481,0.01706368,2936.0,2934.8,3.1903]
[1767064889683,0.002,2935.5,2934.8,3.1903]
[1767064889884,0.002,2935.5,2935.0,3.40715502]
[1767064890900,0.002,2935.5,2934.9,2.2953]
[1767064892226,0.002,2935.5,2934.5,2.2953]
[1767064892708,0.002,2935.5,2934.5,5.702929]
[1767064892920,0.002,2935.5,2934.2,4.30301758]
[1767064892921,0.002,2935.5,2934.6,2.2953]
[1767064893423,0.002,2935.5,2934.7,5.70279175]
[1767064893799,0.002,2935.5,2934.7,2.2953]
[1767064894027,0.002,2935.5,2934.8,2.2953]
[1767064896221,0.002,2935.5,2935.0,2.2953]
[1767064898231,0.002,2935.5,2935.1,3.40703894]
[1767064898421,0.002,2935.5,2935.1,5.70233894]
[1767064898625,0.002,2935.5,2935.1,2.2953]
[1767064900728,0.002,2935.5,2934.2,2.2953]
[1767064900934,0.002,2935.5,2934.8,5.70260864]
[1767064901237,0.002,2935.5,2934.8,2.2953]
[1767064901459,0.91206368,2936.6,2934.8,2.2953]
[1767064901460,0.01706368,2938.4,2935.7,0.01706368]
[1767064901629,0.01706368,2938.4,2935.9,2.2953]
[1767064901630,0.01706368,2938.0,2935.9,2.2953]
[1767064901796,0.01706368,2938.0,2936.1,2.2953]
[1767064901996,0.91106368,2938.2,2936.1,2.2953]
[1767064901997,2.569508,2938.1,2936.2,2.2953]
[1767064902347,12.662036,2938.2,2936.7,2.2953]
[1767064902499,0.01706368,2938.2,2936.7,2.2953]
[1767064902703,0.01706368,2938.2,2936.8,5.70036673]
[1767064903016,0.01706368,2938.0,2936.8,2.2953]
[1767064903230,0.01706368,2937.6,2936.8,2.2953]
[1767064903400,0.91106368,2937.6,2936.8,2.2953]
[1767064904036,0.01706368,2937.4,2936.4,2.2953]
[1767064905138,0.91106368,2937.6,2936.5,2.2953]
[1767064905631,0.894,2937.6,2936.5,2.2953]
[1767064906709,0.01706368,2938.3,2937.0,2.4837]
[1767064906910,0.91106368,2938.3,2937.1,3.40471894]
[1767064907234,0.002,2938.2,2937.0,5.88851628]
[1767064907438,0.002,2938.2,2936.6,3.40522388]
[1767064907439,0.002,2938.2,2936.5,2.4837]
[1767064907750,0.002,2938.2,2937.0,6.80966333]
[1767064908413,0.896,2938.2,2937.0,3.40482847]
[1767064908612,0.896,2938.2,2936.9,3.40494865]
[1767064908813,0.896,2938.2,2936.6,2.4837]
[1767064909016,0.01706368,2937.9,2936.6,3.40527201]
[1767064909637,0.01706368,2937.9,2936.6,6.80102162]
[1767064910043,0.01706368,2938.1,2936.6,6.80102162]
[1767064910411,0.894,2938.0,2936.6,6.80102162]
[1767064910941,0.894,2938.0,2936.5,6.8108292]
[1767064911658,0.01706368,2938.1,2936.5,6.8108292]
[1767064911814,0.894,2937.9,2936.6,2.4837]
[1767064912944,0.894,2937.9,2936.7,3.40518268]
[1767064913250,0.894,2937.9,2936.8,2.4837]
[1767064913952,0.894,2937.9,2936.5,3.40540367]
[1767064913953,0.01706368,2937.8,2936.5,3.40540367]
[1767064914433,0.01706368,2937.8,2936.6,3.4052886]
[1767064914740,0.894,2937.7,2936.7,2.4837]
[1767064915348,0.894,2937.7,2936.9,2.2965]
[1767064915549,0.002,2937.8,2936.7,5.70165619]
[1767064915736,0.894,2937.6,2936.8,2.2965]
[1767064917049,0.002,2937.8,2936.8,2.2965]
[1767064917217,0.894,2937.5,2936.8,2.2965]
[1767064917545,0.894,2937.5,2936.7,6.81033887]
[1767064917546,0.894,2937.5,2937.0,2.2965]
[1767064918170,0.894,2937.7,2937.0,2.2965]
[1767064918309,0.01706368,2938.2,2937.0,2.2965]
[1767064918513,0.894,2938.1,2937.0,2.2965]
[1767064919439,0.35909131,2938.2,2937.0,2.2965]
[1767064919639,0.894,2938.0,2937.0,2.2965]
[1767064919846,0.894,2938.0,2937.0,5.70131116]
[1767064920043,0.894,2938.0,2937.0,2.2965]
[1767064921332,3.7625561,2938.2,2937.0,2.2965]
[1767064921642,0.37625561,2938.1,2937.1,2.2965]
[1767064921849,0.894,2938.0,2937.1,2.2965]
[1767064923433,0.894,2938.0,2936.4,2.2965]
[1767064923635,0.894,2938.0,2936.6,2.2965]
[1767064923853,0.01706368,2937.9,2936.6,2.2965]
[1767064924371,0.01706368,2937.7,2935.3,0.2]
[1767064924561,0.01706368,2937.7,2935.1,0.47056841]
[1767064924562,13.563516,2937.4,2936.1,2.2965]
[1767064924724,2.25205797,2937.3,2936.5,2.2975]
[1767064924918,0.894,2937.3,2936.5,2.2975]
[1767064925323,0.894,2937.3,2936.5,0.001]
[1767064925545,0.894,2937.2,2936.5,0.001]
[1767064927726,0.894,2937.1,2936.5,0.001]
[1767064928255,0.894,2937.1,2935.8,2.2965]
[1767064928557,0.894,2937.1,2935.9,2.2965]
[1767064929061,0.894,2937.1,2935.5,2.2965]
[1767064929256,0.01706368,2937.0,2935.5,2.2965]
[1767064929757,0.01706368,2936.8,2935.5,2.2965]
[1767064929942,0.68269653,2936.7,2935.5,2.2965]
[1767064930959,0.01706368,2936.6,2935.4,0.001]
[1767064931254,0.894,2936.5,2935.4,0.001]
[1767064931466,0.01706368,2936.6,2935.4,2.2975]
[1767064931632,0.894,2936.4,2935.4,2.2975]
[1767064932238,0.42994773,2936.3,2935.4,0.001]
[1767064932430,1.32394773,2936.3,2935.4,2.2975]
[1767064932740,0.894,2936.3,2935.4,2.2975]
[1767064933333,3.405186,2936.7,2935.4,2.2975]
[1767064933532,0.894,2936.6,2935.4,2.2975]
[1767064933757,4.29929864,2936.6,2935.4,2.2975]
[1767064934369,4.31636232,2936.6,2935.4,2.2975]
[1767064935149,0.43163623,2936.5,2935.5,2.33056574]
[1767064935473,0.894,2936.4,2935.5,2.33056574]
[1767064936143,0.894,2936.3,2935.5,2.33056574]
[1767064936468,0.894,2936.5,2935.7,2.2892]
[1767064936656,0.894,2936.9,2935.7,2.32326342]
[1767064936858,0.894,2936.9,2935.7,2.2892]
[1767064937233,0.894,2936.9,2935.7,2.32326342]
[1767064937737,0.894,2937.0,2935.8,2.2892]
[1767064937935,0.894,2937.0,2936.0,2.2892]
[1767064939856,4.29884502,2937.0,2935.6,5.69556599]
[1767064940063,0.894,2937.0,2935.6,2.2892]
[1767064940265,0.894,2937.0,2935.8,2.2892]
[1767064940465,0.43158632,2936.9,2935.8,2.2892]
[1767064941563,3.83653832,2936.9,2935.8,2.2892]
[1767064941759,3.853602,2936.9,2935.8,2.2892]
[1767064942145,3.853602,2936.9,2935.6,2.2892]
[1767064944631,0.01706368,2936.7,2935.5,0.001]
[1767064945467,3.42233416,2936.7,2935.5,2.2902]
[1767064947649,0.01706368,2936.5,2935.5,2.2902]
[1767064947976,0.894,2936.4,2935.2,2.2892]
[1767064948776,0.01706368,2936.3,2935.2,2.2892]
[1767064948953,0.01706368,2936.3,2934.9,2.2892]
[1767064949772,3.40576255,2936.2,2934.9,2.2892]
[1767064949956,0.34228262,2936.1,2935.0,2.2892]
[1767064950472,3.40525913,2936.7,2935.2,2.2892]
[1767064950677,3.42201711,2936.9,2935.4,2.2892]
[1767064950678,0.894,2936.6,2935.4,2.2892]
[1767064950874,0.894,2936.6,2935.6,2.2892]
[1767064951554,0.4747602,2936.8,2935.7,0.03406342]
[1767064951743,0.894,2936.7,2935.8,2.2892]
[1767064952144,0.894,2936.6,2935.8,2.2892]
[1767064954473,0.894,2936.5,2935.8,2.2892]
[1767064955169,0.894,2936.5,2935.5,0.001]
[1767064955371,0.894,2936.5,2935.5,2.2902]
[1767064959681,3.4052245,2936.7,2935.5,2.2902]
[1767064959873,0.894,2936.4,2935.5,2.2902]
[1767064965797,0.894,2936.4,2935.4,0.001]
[1767064965986,4.29959143,2936.4,2935.4,2.2749]
[1767064966302,7.72224654,2936.4,2935.1,2.2739]
[1767064966469,0.77222465,2936.3,2935.1,2.2739]
[1767064966670,4.17792972,2936.3,2935.1,2.2739]
[1767064968997,7.58363479,2936.3,2935.1,2.2739]
[1767064969870,7.58363479,2936.3,2935.0,0.001]
[1767064970375,0.01706368,2936.2,2935.0,0.001]
[1767064970576,0.76006985,2936.1,2935.0,0.001]
[1767064970991,4.1660421,2936.1,2935.0,0.001]
[1767064971576,4.1660421,2936.1,2935.0,2.2749]
[1767064976708,7.57201435,2936.1,2935.0,2.2749]
[1767064976915,4.1660421,2936.1,2935.0,2.2749]
[1767064977092,4.16495479,2936.0,2935.0,2.2749]
[1767064977286,0.894,2935.9,2935.0,2.2749]
[1767064979279,4.30012566,2935.9,2935.0,2.2749]
[1767064979706,0.894,2935.9,2935.0,2.2749]
[1767064982005,4.30013178,2935.9,2935.0,2.2739]
[1767064982209,4.30013178,2935.9,2934.8,0.001]
[1767064982210,0.50588956,2935.8,2934.8,0.001]
[1767064983311,0.50588956,2935.8,2934.8,2.3727]
[1767064984309,3.9121371,2935.8,2934.8,2.3727]
[1767064985183,7.31838464,2935.8,2934.8,2.3727]
[1767064985416,0.82123846,2935.7,2934.8,2.3727]
[1767064986008,0.01706368,2938.9,2936.8,2.3717]
[1767064986216,0.01706368,2938.5,2937.2,29.32939257]
[1767064986404,10.422947,2938.3,2937.2,2.3717]
[1767064986715,0.894,2938.2,2937.2,2.3717]
[1767064986882,0.894,2938.2,2936.9,2.3717]
[1767064987088,0.002,2937.5,2937.2,26.957693]
[1767064987290,0.894,2937.4,2937.2,26.957693]
[1767064987800,0.894,2937.3,2937.2,25.174693]
[1767064988412,1e-08,2937.5,2937.2,25.174693]
[1767064988617,1e-08,2937.3,2937.2,25.174693]
[1767064989017,1e-08,2937.5,2937.2,25.174693]
[1767064989196,0.894,2937.7,2937.3,25.174693]
[1767064989385,9.8214,2938.6,2937.3,25.174693]
[1767064989586,3.342351,2938.4,2937.3,25.174693]
[1767064990892,2.25147279,2937.3,2936.8,0.1778]
[1767064991091,0.894,2937.5,2936.8,0.1778]
[1767064992202,0.894,2937.5,2936.5,3.40533089]
[1767064992402,0.894,2937.5,2936.8,27.546393]
[1767064992605,0.894,2937.6,2936.9,27.546393]
[1767064992821,0.894,2937.6,2936.9,25.174693]
[1767064992995,0.894,2937.6,2936.8,25.174693]
[1767064993316,0.89400001,2937.4,2936.8,25.174693]
[1767064995014,0.89400001,2937.4,2936.3,2.3717]
[1767064995209,0.89400001,2937.4,2936.6,13.13092]
[1767064995522,0.06378512,2937.5,2937.3,13.13092]
[1767064995924,0.06378512,2937.5,2936.6,6.81055542]
[1767064995925,0.06378512,2937.5,2937.4,13.13092]
[1767064997098,0.06378512,2937.5,2937.3,15.62482]
[1767064997722,0.06378512,2937.5,2937.3,13.13092]
[1767064998934,0.002,2937.6,2937.4,2.4939]
[1767064999228,0.01706368,2939.4,2937.6,2.4939]
[1767064999229,0.894,2938.2,2937.6,2.4939]
[1767064999427,3.40478435,2938.8,2937.6,2.4939]
[1767064999428,3.40290847,2938.7,2937.6,2.4939]
[1767064999723,0.894,2938.6,2937.6,2.4939]
[1767064999927,0.894,2938.6,2937.2,2.4939]
[1767065000131,0.894,2938.6,2936.2,1.26499802]
[1767065000132,0.48965313,2940.1,2938.2,2.4939]
[1767065000335,0.48965313,2940.1,2939.1,2.4939]
[1767065000517,0.48965313,2940.1,2939.4,13.13092]